{"text_format":"1","workbook":"xlsx","n_sheets":6,"sheets":["Instructions","Data Entry Sheet","Div Sort","Sort Sheet","Sheet2","Sheet1"],"not_rendered":{"charts":0,"images":0,"macros":1,"external_links":0,"defined_names":2,"comments":0,"pivot_tables":0},"unopened":[],"bounds":{"document_bytes":16777216,"sheet_cells":100000,"rows_first":2000,"rows_last":500,"rows_between":2000,"halvings":0,"cell_chars":16384,"cell_head_chars":4096},"cells_cut":0,"cells_raw":0,"read":"whole","date_system":"1900"}

{"sheet":"Instructions","index":0,"n_rows":18,"n_cols":2,"rows_kept":18,"cut":false,"hidden":false,"merged":[]}
[1,"Fill out all white cells - do not leave any blank as data is required for assessing achievements earned and in case a tie breaker is needed"]
[2,"Review data for accuracy as this sheet does not double check your scoring math for you but it does calculate achievement automatically"]
[3,"Go to 2nd tab - Sort Sheet"]
[4,"Place cursor in yellow box and press the sort button"]
[5,"Data will be sorted by total from highest to lowest and considers the tie breaker criteria when sorting."]
[6,"A \"clear data\" button is available in order to start fresh or to clear data from the previous competition"]
[]
[null,"Put Level 1 on a separate file than Level 2.  This file can be used for either but data from each level must be saved on separate files."]
[]
[]
["Do not rearrange any columns or delete any example rows!"]
["Save this form as the Event name, date, game (Example:  PlantCity2-8-15ThrowNGo)"]
["Email to results@updogchallenge.com within 10 days of event"]
[null,"Tie Breaking: In the event of a tie, to determine placements, use the following criteria: the team with the fewest misses"]
[null,"wins, then the team with the most catches in the bonus zone wins. If both of these criteria are identical as well, teams "]
[null,"involved in the tie will enter a throw off where each team will get one throw. . The team who scores the highest point "]
[null,"value wins the tie. The throwing order in the tie breaker is determined by a disc toss. Throw off continues until tie is "]
[null,"broken."]

{"sheet":"Data Entry Sheet","index":1,"n_rows":300,"n_cols":16,"rows_kept":300,"cut":false,"hidden":false,"merged":[[0,0,0,14]]}
["Throw N Go Data Entry"]
["Level ","Handler","Dog","UDT #\n(this is the UpDog Team # not the competitor #)","Total # of catches (incl bonus zone, non bonus zone and OB)","# of Bonus Zone Catches","# Missed Catches (do not leave this field blank)","Point Total Scored (double check your math prior to entry)","Did the handler, dog and discs end in the Sweet Spot, Y or N?","Total","Were all throws thrown as Rollers\nY or N?","High Roller","Super High Roller","Golden Receiver","Sharp Shooter","Division"]
[1,"Example","Uppy D",null,4,4,0,16,"Y",{"$f":"SUM(H3)+IF(I3=\"Y\",5,IF(I3=\"N\",0))","v":21},"Y",{"$f":"IF(AND(J3>11,K3=\"Y\"),\"Yes\",\"No\")","v":"Yes"},{"$f":"IF(AND(J3>19,K3=\"Y\"),\"Yes\",\"No\")","v":"Yes"},{"$f":"IF(AND(E3>3)*(G3=0),\"Yes\",\"No\")","v":"Yes"},{"$f":"IF(AND(F3>3)*(G3=0),\"Yes\",\"No\")","v":"Yes"},"Midi"]
[null,"Frank Montgomery","Bil Boy Blu","T2009152",0,0,2,0,"N",{"$f":"SUM(H4)+IF(I4=\"Y\",5,IF(I4=\"N\",0))","v":0},"N",{"$f":"IF(AND(J4>11,K4=\"Y\"),\"Yes\",\"No\")","v":"No"},{"$f":"IF(AND(J4>19,K4=\"Y\"),\"Yes\",\"No\")","v":"No"},{"$f":"IF(AND(E4>3)*(G4=0),\"Yes\",\"No\")","v":"No"},{"$f":"IF(AND(F4>3)*(G4=0),\"Yes\",\"No\")","v":"No"}]
[null,"Frank Montgomery","Jagger","T12683192",5,4,0,46,"Y",{"$f":"SUM(H5)+IF(I5=\"Y\",5,IF(I5=\"N\",0))","v":51},"N","No","No",{"$f":"IF(AND(E5>3)*(G5=0),\"Yes\",\"No\")","v":"Yes"},"Yes"]
[null,"Finn Proctor","Figment","T29479233",4,4,0,40,"N",40,"N","No","No","Yes","Yes"]
[null,"Tracy Love","Rhythm","T10175199",5,5,1,40,"N",40,"N","No","No","No","No"]
[null,"Lindsay Thompson","Moxie","T27199235",2,1,2,11,"Y",16,"N","No","No","No","No"]
[null,"Finn Proctor","Rumor","T29480237",2,2,1,22,"Y",27,"N","No","No","No","No"]
[null,"Jeff Love","Rhapsody","T13736205",1,0,4,3,"N",3,"N","No","No","No","No"]
[null,"Finn Proctor","Tango","T30544231",3,3,2,25,"Y",30,"N","No","No","No","No"]
[null,"Marisa Finan-Goode","Kite","T21413223",7,5,0,36,"N",36,"N","No","No","Yes","Yes"]
[null,"Silver Alfriker","Bisha","T26466233",0,0,4,0,"N",0,"N","No","No","No","No"]
[null,"Eden Proctor","Rumor","T30760240",0,0,3,0,"Y",5,"N","No","No","No","No"]
[null,"Tammy Bonas","Tac","T8932181",3,3,1,26,"N",26,"N","No","No","No","No"]
[null,"Jennifer Bale O'Connell","Mayday","T24346222",0,0,4,0,"N",0,"N","No","No","No","No"]
[null,"Ashley Rogers","Oakley","T30961243",1,1,2,6,"N",6,"N","No","No","No","No"]
[null,"Rachel Hoar","Nacho","T16237214",1,0,4,4,"Y",9,"N","No","No","No","No"]
[null,"Zoey Proctor","Figment","T29478231",1,1,4,8,"N",8,"N","No","No","No","No"]
[null,"Tammy Bonas","Bo","T26447235",1,0,3,4,"N",4,"N","No","No","No","No"]
[null,"Tara Moriarty","Draak","T29481235",4,2,1,18,"Y",23,"Y","Yes","Yes","No","No"]
[null,"Jennifer Bale O'Connell","Chili","T10144199",2,1,3,12,"N",12,"Y","Yes","No","No","No"]
[null,"Sam Marion","GIR","T20779220",5,3,0,28,"N",28,"Y","Yes","Yes","Yes","No"]
[null,"Sam Marion","Jack Smellington","T9206187",3,2,3,10,"Y",15,"Y","Yes","No","No","No"]
[null,null,null,null,null,null,null,null,null,0,null,"No","No","No","No"]
[null,null,null,null,null,null,null,null,null,0,null,"No","No","No","No"]
[null,null,null,null,null,null,null,null,null,0,null,"No","No","No","No"]
[null,null,null,null,null,null,null,null,null,0,null,"No","No","No","No"]
[null,null,null,null,null,null,null,null,null,0,null,"No","No","No","No"]
[null,null,null,null,null,null,null,null,null,0,null,"No","No","No","No"]
[null,null,null,null,null,null,null,null,null,0,null,"No","No","No","No"]
[null,null,null,null,null,null,null,null,null,0,null,"No","No","No","No"]
[null,null,null,null,null,null,null,null,null,0,null,"No","No","No","No"]
[null,null,null,null,null,null,null,null,null,0,null,"No","No","No","No"]
[null,null,null,null,null,null,null,null,null,0,null,"No","No","No","No"]
[null,null,null,null,null,null,null,null,null,0,null,"No","No","No","No"]
[null,null,null,null,null,null,null,null,null,0,null,"No","No","No","No"]
[null,null,null,null,null,null,null,null,null,0,null,"No","No","No","No"]
[null,null,null,null,null,null,null,null,null,0,null,"No","No","No","No"]
[null,null,null,null,null,null,null,null,null,0,null,"No","No","No","No"]
[null,null,null,null,null,null,null,null,null,0,null,"No","No","No","No"]
[null,null,null,null,null,null,null,null,null,0,null,"No","No","No","No"]
[null,null,null,null,null,null,null,null,null,0,null,"No","No","No","No"]
[null,null,null,null,null,null,null,null,null,0,null,"No","No","No","No"]
[null,null,null,null,null,null,null,null,null,0,null,"No","No","No","No"]
[null,null,null,null,null,null,null,null,null,0,null,"No","No","No","No"]
[null,null,null,null,null,null,null,null,null,0,null,"No","No","No","No"]
[null,null,null,null,null,null,null,null,null,0,null,"No","No","No","No"]
[null,null,null,null,null,null,null,null,null,0,null,"No","No","No","No"]
[null,null,null,null,null,null,null,null,null,0,null,"No","No","No","No"]
[null,null,null,null,null,null,null,null,null,0,null,"No","No","No","No"]
[null,null,null,null,null,null,null,null,null,0,null,"No","No","No","No"]
[null,null,null,null,null,null,null,null,null,0,null,"No","No","No","No"]
[null,null,null,null,null,null,null,null,null,0,null,"No","No","No","No"]
[null,null,null,null,null,null,null,null,null,0,null,"No","No","No","No"]
[null,null,null,null,null,null,null,null,null,0,null,"No","No","No","No"]
[null,null,null,null,null,null,null,null,null,0,null,"No","No","No","No"]
[null,null,null,null,null,null,null,null,null,0,null,"No","No","No","No"]
[null,null,null,null,null,null,null,null,null,0,null,"No","No","No","No"]
[null,null,null,null,null,null,null,null,null,0,null,"No","No","No","No"]
[null,null,null,null,null,null,null,null,null,0,null,"No","No","No","No"]
[null,null,null,null,null,null,null,null,null,0,null,"No","No","No","No"]
[null,null,null,null,null,null,null,null,null,0,null,"No","No","No","No"]
[null,null,null,null,null,null,null,null,null,0,null,"No","No","No","No"]
[null,null,null,null,null,null,null,null,null,0,null,"No","No","No","No"]
[null,null,null,null,null,null,null,null,null,0,null,"No","No","No","No"]
[null,null,null,null,null,null,null,null,null,0,null,"No","No","No","No"]
[null,null,null,null,null,null,null,null,null,{"$f":"SUM(H68)+IF(I68=\"Y\",5,IF(I68=\"N\",0))","v":0},null,{"$f":"IF(AND(J68>11,K68=\"Y\"),\"Yes\",\"No\")","v":"No"},{"$f":"IF(AND(J68>19,K68=\"Y\"),\"Yes\",\"No\")","v":"No"},{"$f":"IF(AND(E68>3)*(G68=0),\"Yes\",\"No\")","v":"No"},{"$f":"IF(AND(F68>3)*(G68=0),\"Yes\",\"No\")","v":"No"}]
[null,null,null,null,null,null,null,null,null,0,null,"No","No","No","No"]
[null,null,null,null,null,null,null,null,null,0,null,"No","No","No","No"]
[null,null,null,null,null,null,null,null,null,0,null,"No","No","No","No"]
[null,null,null,null,null,null,null,null,null,0,null,"No","No","No","No"]
[null,null,null,null,null,null,null,null,null,0,null,"No","No","No","No"]
[null,null,null,null,null,null,null,null,null,0,null,"No","No","No","No"]
[null,null,null,null,null,null,null,null,null,0,null,"No","No","No","No"]
[null,null,null,null,null,null,null,null,null,0,null,"No","No","No","No"]
[null,null,null,null,null,null,null,null,null,0,null,"No","No","No","No"]
[null,null,null,null,null,null,null,null,null,0,null,"No","No","No","No"]
[null,null,null,null,null,null,null,null,null,0,null,"No","No","No","No"]
[null,null,null,null,null,null,null,null,null,0,null,"No","No","No","No"]
[null,null,null,null,null,null,null,null,null,0,null,"No","No","No","No"]
[null,null,null,null,null,null,null,null,null,0,null,"No","No","No","No"]
[null,null,null,null,null,null,null,null,null,0,null,"No","No","No","No"]
[null,null,null,null,null,null,null,null,null,0,null,"No","No","No","No"]
[null,null,null,null,null,null,null,null,null,0,null,"No","No","No","No"]
[null,null,null,null,null,null,null,null,null,0,null,"No","No","No","No"]
[null,null,null,null,null,null,null,null,null,0,null,"No","No","No","No"]
[null,null,null,null,null,null,null,null,null,0,null,"No","No","No","No"]
[null,null,null,null,null,null,null,null,null,0,null,"No","No","No","No"]
[null,null,null,null,null,null,null,null,null,0,null,"No","No","No","No"]
[null,null,null,null,null,null,null,null,null,0,null,"No","No","No","No"]
[null,null,null,null,null,null,null,null,null,0,null,"No","No","No","No"]
[null,null,null,null,null,null,null,null,null,0,null,"No","No","No","No"]
[null,null,null,null,null,null,null,null,null,0,null,"No","No","No","No"]
[null,null,null,null,null,null,null,null,null,0,null,"No","No","No","No"]
[null,null,null,null,null,null,null,null,null,0,null,"No","No","No","No"]
[null,null,null,null,null,null,null,null,null,0,null,"No","No","No","No"]
[null,null,null,null,null,null,null,null,null,0,null,"No","No","No","No"]
[null,null,null,null,null,null,null,null,null,0,null,"No","No","No","No"]
[null,null,null,null,null,null,null,null,null,0,null,"No","No","No","No"]
[null,null,null,null,null,null,null,null,null,0,null,"No","No","No","No"]
[null,null,null,null,null,null,null,null,null,0,null,"No","No","No","No"]
[null,null,null,null,null,null,null,null,null,0,null,"No","No","No","No"]
[null,null,null,null,null,null,null,null,null,0,null,"No","No","No","No"]
[null,null,null,null,null,null,null,null,null,0,null,"No","No","No","No"]
[null,null,null,null,null,null,null,null,null,0,null,"No","No","No","No"]
[null,null,null,null,null,null,null,null,null,0,null,"No","No","No","No"]
[null,null,null,null,null,null,null,null,null,0,null,"No","No","No","No"]
[null,null,null,null,null,null,null,null,null,0,null,"No","No","No","No"]
[null,null,null,null,null,null,null,null,null,0,null,"No","No","No","No"]
[null,null,null,null,null,null,null,null,null,0,null,"No","No","No","No"]
[null,null,null,null,null,null,null,null,null,0,null,"No","No","No","No"]
[null,null,null,null,null,null,null,null,null,0,null,"No","No","No","No"]
[null,null,null,null,null,null,null,null,null,0,null,"No","No","No","No"]
[null,null,null,null,null,null,null,null,null,0,null,"No","No","No","No"]
[null,null,null,null,null,null,null,null,null,0,null,"No","No","No","No"]
[null,null,null,null,null,null,null,null,null,0,null,"No","No","No","No"]
[null,null,null,null,null,null,null,null,null,0,null,"No","No","No","No"]
[null,null,null,null,null,null,null,null,null,0,null,"No","No","No","No"]
[null,null,null,null,null,null,null,null,null,0,null,"No","No","No","No"]
[null,null,null,null,null,null,null,null,null,0,null,"No","No","No","No"]
[null,null,null,null,null,null,null,null,null,0,null,"No","No","No","No"]
[null,null,null,null,null,null,null,null,null,0,null,"No","No","No","No"]
[null,null,null,null,null,null,null,null,null,0,null,"No","No",{"$f":"IF(AND(D124>3)*(G124=0),\"Yes\",\"No\")","v":"No"},"No"]
[null,null,null,null,null,null,null,null,null,0,null,"No","No","No","No"]
[null,null,null,null,null,null,null,null,null,0,null,"No","No","No","No"]
[null,null,null,null,null,null,null,null,null,0,null,"No","No","No","No"]
[null,null,null,null,null,null,null,null,null,0,null,"No","No","No","No"]
[null,null,null,null,null,null,null,null,null,0,null,"No","No","No","No"]
[null,null,null,null,null,null,null,null,null,0,null,"No","No","No","No"]
[null,null,null,null,null,null,null,null,null,0,null,"No","No","No","No"]
[null,null,null,null,null,null,null,null,null,{"$f":"SUM(H132)+IF(I132=\"Y\",5,IF(I132=\"N\",0))","v":0},null,{"$f":"IF(AND(J132>11,K132=\"Y\"),\"Yes\",\"No\")","v":"No"},{"$f":"IF(AND(J132>19,K132=\"Y\"),\"Yes\",\"No\")","v":"No"},"No",{"$f":"IF(AND(F132>3)*(G132=0),\"Yes\",\"No\")","v":"No"}]
[null,null,null,null,null,null,null,null,null,0,null,"No","No","No","No"]
[null,null,null,null,null,null,null,null,null,0,null,"No","No","No","No"]
[null,null,null,null,null,null,null,null,null,0,null,"No","No","No","No"]
[null,null,null,null,null,null,null,null,null,0,null,"No","No","No","No"]
[null,null,null,null,null,null,null,null,null,0,null,"No","No","No","No"]
[null,null,null,null,null,null,null,null,null,0,null,"No","No","No","No"]
[null,null,null,null,null,null,null,null,null,0,null,"No","No","No","No"]
[null,null,null,null,null,null,null,null,null,0,null,"No","No","No","No"]
[null,null,null,null,null,null,null,null,null,0,null,"No","No","No","No"]
[null,null,null,null,null,null,null,null,null,0,null,"No","No","No","No"]
[null,null,null,null,null,null,null,null,null,0,null,"No","No","No","No"]
[null,null,null,null,null,null,null,null,null,0,null,"No","No","No","No"]
[null,null,null,null,null,null,null,null,null,0,null,"No","No","No","No"]
[null,null,null,null,null,null,null,null,null,0,null,"No","No","No","No"]
[null,null,null,null,null,null,null,null,null,0,null,"No","No","No","No"]
[null,null,null,null,null,null,null,null,null,0,null,"No","No","No","No"]
[null,null,null,null,null,null,null,null,null,0,null,"No","No","No","No"]
[null,null,null,null,null,null,null,null,null,{"$f":"SUM(H150)+IF(I150=\"Y\",5,IF(I150=\"N\",0))","v":0},null,"No","No","No","No"]
[null,null,null,null,null,null,null,null,null,{"$f":"SUM(H151)+IF(I151=\"Y\",5,IF(I151=\"N\",0))","v":0},null,"No","No","No","No"]
[null,null,null,null,null,null,null,null,null,0,null,"No","No","No","No"]
[null,null,null,null,null,null,null,null,null,0,null,"No","No","No","No"]
[null,null,null,null,null,null,null,null,null,0,null,"No","No","No","No"]
[null,null,null,null,null,null,null,null,null,0,null,"No","No","No","No"]
[null,null,null,null,null,null,null,null,null,{"$f":"SUM(H156)+IF(I156=\"Y\",5,IF(I156=\"N\",0))","v":0},null,"No","No","No","No"]
[null,null,null,null,null,null,null,null,null,0,null,"No","No","No","No"]
[null,null,null,null,null,null,null,null,null,0,null,"No","No","No","No"]
[null,null,null,null,null,null,null,null,null,0,null,"No","No","No","No"]
[null,null,null,null,null,null,null,null,null,0,null,"No","No","No","No"]
[null,null,null,null,null,null,null,null,null,0,null,"No","No","No","No"]
[null,null,null,null,null,null,null,null,null,0,null,"No","No","No","No"]
[null,null,null,null,null,null,null,null,null,0,null,"No","No","No","No"]
[null,null,null,null,null,null,null,null,null,0,null,"No","No","No","No"]
[null,null,null,null,null,null,null,null,null,0,null,"No","No","No","No"]
[null,null,null,null,null,null,null,null,null,0,null,"No","No","No","No"]
[null,null,null,null,null,null,null,null,null,0,null,"No","No","No","No"]
[null,null,null,null,null,null,null,null,null,0,null,"No","No","No","No"]
[null,null,null,null,null,null,null,null,null,0,null,"No","No","No","No"]
[null,null,null,null,null,null,null,null,null,0,null,"No","No","No","No"]
[null,null,null,null,null,null,null,null,null,0,null,"No","No",{"$f":"IF(AND(E171>3)*(G171=0),\"Yes\",\"No\")","v":"No"},"No"]
[null,null,null,null,null,null,null,null,null,0,null,"No","No","No","No"]
[null,null,null,null,null,null,null,null,null,0,null,"No","No","No","No"]
[null,null,null,null,null,null,null,null,null,0,null,"No","No","No","No"]
[null,null,null,null,null,null,null,null,null,0,null,"No","No","No","No"]
[null,null,null,null,null,null,null,null,null,0,null,"No","No","No","No"]
[null,null,null,null,null,null,null,null,null,0,null,"No","No","No","No"]
[null,null,null,null,null,null,null,null,null,0,null,"No","No","No","No"]
[null,null,null,null,null,null,null,null,null,0,null,"No","No","No","No"]
[null,null,null,null,null,null,null,null,null,{"$f":"SUM(H180)+IF(I180=\"Y\",5,IF(I180=\"N\",0))","v":0},null,"No","No","No","No"]
[null,null,null,null,null,null,null,null,null,0,null,"No","No","No","No"]
[null,null,null,null,null,null,null,null,null,0,null,"No","No","No","No"]
[null,null,null,null,null,null,null,null,null,0,null,"No","No","No","No"]
[null,null,null,null,null,null,null,null,null,0,null,"No","No","No","No"]
[null,null,null,null,null,null,null,null,null,0,null,"No","No","No","No"]
[null,null,null,null,null,null,null,null,null,0,null,"No","No","No","No"]
[null,null,null,null,null,null,null,null,null,0,null,"No","No","No","No"]
[null,null,null,null,null,null,null,null,null,0,null,"No","No","No","No"]
[null,null,null,null,null,null,null,null,null,0,null,"No","No","No","No"]
[null,null,null,null,null,null,null,null,null,0,null,"No","No","No","No"]
[null,null,null,null,null,null,null,null,null,0,null,"No","No","No","No"]
[null,null,null,null,null,null,null,null,null,0,null,"No","No","No","No"]
[null,null,null,null,null,null,null,null,null,0,null,"No","No","No","No"]
[null,null,null,null,null,null,null,null,null,0,null,"No","No","No","No"]
[null,null,null,null,null,null,null,null,null,0,null,"No","No","No","No"]
[null,null,null,null,null,null,null,null,null,{"$f":"SUM(H196)+IF(I196=\"Y\",5,IF(I196=\"N\",0))","v":0},null,{"$f":"IF(AND(J196>11,K196=\"Y\"),\"Yes\",\"No\")","v":"No"},{"$f":"IF(AND(J196>19,K196=\"Y\"),\"Yes\",\"No\")","v":"No"},{"$f":"IF(AND(E196>3)*(G196=0),\"Yes\",\"No\")","v":"No"},{"$f":"IF(AND(F196>3)*(G196=0),\"Yes\",\"No\")","v":"No"}]
[null,null,null,null,null,null,null,null,null,0,null,"No","No","No","No"]
[null,null,null,null,null,null,null,null,null,0,null,"No","No","No","No"]
[null,null,null,null,null,null,null,null,null,0,null,"No","No","No","No"]
[null,null,null,null,null,null,null,null,null,0,null,"No","No","No","No"]
[null,null,null,null,null,null,null,null,null,0,null,"No","No","No","No"]
[null,null,null,null,null,null,null,null,null,0,null,"No","No","No","No"]
[null,null,null,null,null,null,null,null,null,0,null,"No","No","No","No"]
[null,null,null,null,null,null,null,null,null,0,null,"No","No","No","No"]
[null,null,null,null,null,null,null,null,null,0,null,"No","No","No","No"]
[null,null,null,null,null,null,null,null,null,0,null,"No","No","No","No"]
[null,null,null,null,null,null,null,null,null,0,null,"No","No","No","No"]
[null,null,null,null,null,null,null,null,null,0,null,"No","No","No","No"]
[null,null,null,null,null,null,null,null,null,0,null,"No","No","No","No"]
[null,null,null,null,null,null,null,null,null,0,null,"No","No","No","No"]
[null,null,null,null,null,null,null,null,null,0,null,"No","No","No","No"]
[null,null,null,null,null,null,null,null,null,0,null,"No","No","No","No"]
[null,null,null,null,null,null,null,null,null,0,null,"No","No","No","No"]
[null,null,null,null,null,null,null,null,null,0,null,"No","No","No","No"]
[null,null,null,null,null,null,null,null,null,0,null,"No","No","No","No"]
[null,null,null,null,null,null,null,null,null,0,null,"No","No","No","No"]
[null,null,null,null,null,null,null,null,null,0,null,"No","No","No","No"]
[null,null,null,null,null,null,null,null,null,0,null,"No","No","No","No"]
[null,null,null,null,null,null,null,null,null,0,null,"No","No","No","No"]
[null,null,null,null,null,null,null,null,null,0,null,"No","No","No","No"]
[null,null,null,null,null,null,null,null,null,0,null,"No","No","No","No"]
[null,null,null,null,null,null,null,null,null,0,null,"No","No","No","No"]
[null,null,null,null,null,null,null,null,null,0,null,"No","No","No","No"]
[null,null,null,null,null,null,null,null,null,0,null,"No","No","No","No"]
[null,null,null,null,null,null,null,null,null,0,null,"No","No","No","No"]
[null,null,null,null,null,null,null,null,null,0,null,"No","No","No","No"]
[null,null,null,null,null,null,null,null,null,0,null,"No","No","No","No"]
[null,null,null,null,null,null,null,null,null,0,null,"No","No","No","No"]
[null,null,null,null,null,null,null,null,null,0,null,"No","No","No","No"]
[null,null,null,null,null,null,null,null,null,0,null,"No","No","No","No"]
[null,null,null,null,null,null,null,null,null,0,null,"No","No","No","No"]
[null,null,null,null,null,null,null,null,null,0,null,"No","No","No","No"]
[null,null,null,null,null,null,null,null,null,0,null,"No","No","No","No"]
[null,null,null,null,null,null,null,null,null,0,null,"No","No","No","No"]
[null,null,null,null,null,null,null,null,null,0,null,"No","No","No","No"]
[null,null,null,null,null,null,null,null,null,0,null,"No","No","No","No"]
[null,null,null,null,null,null,null,null,null,0,null,"No","No","No","No"]
[null,null,null,null,null,null,null,null,null,0,null,"No","No","No","No"]
[null,null,null,null,null,null,null,null,null,0,null,"No","No","No","No"]
[null,null,null,null,null,null,null,null,null,0,null,"No","No","No","No"]
[null,null,null,null,null,null,null,null,null,0,null,"No","No","No","No"]
[null,null,null,null,null,null,null,null,null,0,null,"No","No","No","No"]
[null,null,null,null,null,null,null,null,null,0,null,"No","No","No","No"]
[null,null,null,null,null,null,null,null,null,0,null,"No","No","No","No"]
[null,null,null,null,null,null,null,null,null,0,null,"No","No","No","No"]
[null,null,null,null,null,null,null,null,null,0,null,"No","No","No","No"]
[null,null,null,null,null,null,null,null,null,0,null,"No","No","No","No"]
[null,null,null,null,null,null,null,null,null,0,null,"No","No","No","No"]
[null,null,null,null,null,null,null,null,null,0,null,"No","No","No","No"]
[null,null,null,null,null,null,null,null,null,0,null,"No","No","No","No"]
[null,null,null,null,null,null,null,null,null,0,null,"No","No","No","No"]
[null,null,null,null,null,null,null,null,null,0,null,"No","No","No","No"]
[null,null,null,null,null,null,null,null,null,0,null,"No","No","No","No"]
[null,null,null,null,null,null,null,null,null,0,null,"No","No","No","No"]
[null,null,null,null,null,null,null,null,null,0,null,"No","No","No","No"]
[null,null,null,null,null,null,null,null,null,0,null,"No","No","No","No"]
[null,null,null,null,null,null,null,null,null,0,null,"No","No","No","No"]
[null,null,null,null,null,null,null,null,null,0,null,"No","No","No","No"]
[null,null,null,null,null,null,null,null,null,0,null,"No","No","No","No"]
[null,null,null,null,null,null,null,null,null,{"$f":"SUM(H260)+IF(I260=\"Y\",5,IF(I260=\"N\",0))","v":0},null,{"$f":"IF(AND(J260>11,K260=\"Y\"),\"Yes\",\"No\")","v":"No"},{"$f":"IF(AND(J260>19,K260=\"Y\"),\"Yes\",\"No\")","v":"No"},{"$f":"IF(AND(E260>3)*(G260=0),\"Yes\",\"No\")","v":"No"},{"$f":"IF(AND(F260>3)*(G260=0),\"Yes\",\"No\")","v":"No"}]
[null,null,null,null,null,null,null,null,null,0,null,"No","No","No","No"]
[null,null,null,null,null,null,null,null,null,0,null,"No","No","No","No"]
[null,null,null,null,null,null,null,null,null,0,null,"No","No","No","No"]
[null,null,null,null,null,null,null,null,null,0,null,"No","No","No","No"]
[null,null,null,null,null,null,null,null,null,0,null,"No","No","No","No"]
[null,null,null,null,null,null,null,null,null,0,null,"No","No","No","No"]
[null,null,null,null,null,null,null,null,null,0,null,"No","No","No","No"]
[null,null,null,null,null,null,null,null,null,0,null,"No","No","No","No"]
[null,null,null,null,null,null,null,null,null,0,null,"No","No","No","No"]
[null,null,null,null,null,null,null,null,null,0,null,"No","No","No","No"]
[null,null,null,null,null,null,null,null,null,0,null,"No","No","No","No"]
[null,null,null,null,null,null,null,null,null,0,null,"No","No","No","No"]
[null,null,null,null,null,null,null,null,null,0,null,"No","No","No","No"]
[null,null,null,null,null,null,null,null,null,0,null,"No","No","No","No"]
[null,null,null,null,null,null,null,null,null,0,null,"No","No","No","No"]
[null,null,null,null,null,null,null,null,null,0,null,"No","No","No","No"]
[null,null,null,null,null,null,null,null,null,0,null,"No","No","No","No"]
[null,null,null,null,null,null,null,null,null,0,null,"No","No","No","No"]
[null,null,null,null,null,null,null,null,null,0,null,"No","No","No","No"]
[null,null,null,null,null,null,null,null,null,0,null,"No","No","No","No"]
[null,null,null,null,null,null,null,null,null,0,null,"No","No","No","No"]
[null,null,null,null,null,null,null,null,null,0,null,"No","No","No","No"]
[null,null,null,null,null,null,null,null,null,0,null,"No","No","No","No"]
[null,null,null,null,null,null,null,null,null,0,null,"No","No","No","No"]
[null,null,null,null,null,null,null,null,null,0,null,"No","No","No","No"]
[null,null,null,null,null,null,null,null,null,0,null,"No","No","No","No"]
[null,null,null,null,null,null,null,null,null,0,null,"No","No","No","No"]
[null,null,null,null,null,null,null,null,null,0,null,"No","No","No","No"]
[null,null,null,null,null,null,null,null,null,0,null,"No","No","No","No"]
[null,null,null,null,null,null,null,null,null,0,null,"No","No","No","No"]
[null,null,null,null,null,null,null,null,null,0,null,"No","No","No","No"]
[null,null,null,null,null,null,null,null,null,0,null,"No","No","No","No"]
[null,null,null,null,null,null,null,null,null,0,null,"No","No","No","No"]
[null,null,null,null,null,null,null,null,null,0,null,"No","No","No","No"]
[null,null,null,null,null,null,null,null,null,0,null,"No","No","No","No"]
[null,null,null,null,null,null,null,null,null,0,null,"No","No","No","No"]
[null,null,null,null,null,null,null,null,null,0,null,"No","No","No","No"]
[null,null,null,null,null,null,null,null,null,0,null,"No","No","No","No"]
[null,null,null,null,null,null,null,null,null,0,null,"No","No","No","No"]
[null,null,null,null,null,null,null,null,null,0,null,"No","No","No","No"]

{"sheet":"Div Sort","index":2,"n_rows":1,"n_cols":16,"rows_kept":1,"cut":false,"hidden":false,"merged":[]}
["Level ","Handler","Dog","UDT #\n(this is the UpDog Team # not the competitor #)","Total # of catches (incl bonus zone, non bonus zone and OB)","# of Bonus Zone Catches","# Missed Catches (do not leave this field blank)","Point Total Scored (double check your math prior to entry)","Did the handler, dog and 1 disc end in the Sweet Spot, Y or N?","Total","Were all throws thrown as Rollers\nY or N?","High Roller","Super High Roller","Golden Receiver","Sharp Shooter","Division"]

{"sheet":"Sort Sheet","index":3,"n_rows":298,"n_cols":15,"rows_kept":298,"cut":false,"hidden":false,"merged":[]}
["Level ","Handler","Dog","UDT #          (this is the UpDog Team # not the competitor #)","Total # of catches (incl bonus zone, non bonus zone and OB)","# of Bonus Zone Catches","# Missed Catches (do not leave this field blank)","Point Total Scored (double check your math prior to entry)","Did the handler, dog and 1 disc end in the Sweet Spot, Y or N?","Total","Were all throws thrown as Rollers           Y or N?","High Roller","Super High Roller","Golden Receiver","Sharp Shooter"]
[null,"Frank Montgomery","Jagger","T12683192",5,4,0,46,"Y",{"$f":"SUM(H2)+IF(I2=\"Y\",5,IF(I2=\"N\",0))","v":51},"N",{"$f":"IF(AND(J2>11,K2=\"Y\"),\"Yes\",\"No\")","v":"No"},{"$f":"IF(AND(J2>19,K2=\"Y\"),\"Yes\",\"No\")","v":"No"},{"$f":"IF(AND(E2>3)*(G2=0),\"Yes\",\"No\")","v":"Yes"},{"$f":"IF(AND(F2>3)*(G2=0),\"Yes\",\"No\")","v":"Yes"}]
[null,"Finn Proctor","Figment","T29479233",4,4,0,40,"N",40,"N","No","No","Yes","Yes"]
[null,"Tracy Love","Rhythm","T10175199",5,5,1,40,"N",40,"N","No","No","No","No"]
[null,"Marisa Finan-Goode","Kite","T21413223",7,5,0,36,"N",36,"N","No","No","Yes","Yes"]
[null,"Finn Proctor","Tango","T30544231",3,3,2,25,"Y",30,"N","No","No","No","No"]
[null,"Sam Marion","GIR","T20779220",5,3,0,28,"N",28,"Y","Yes","Yes","Yes","No"]
[null,"Finn Proctor","Rumor","T29480237",2,2,1,22,"Y",27,"N","No","No","No","No"]
[null,"Tammy Bonas","Tac","T8932181",3,3,1,26,"N",26,"N","No","No","No","No"]
[null,"Tara Moriarty","Draak","T29481235",4,2,1,18,"Y",23,"Y","Yes","Yes","No","No"]
[null,"Lindsay Thompson","Moxie","T27199235",2,1,2,11,"Y",16,"N","No","No","No","No"]
[null,"Sam Marion","Jack Smellington","T9206187",3,2,3,10,"Y",15,"Y","Yes","No","No","No"]
[null,"Jennifer Bale O'Connell","Chili","T10144199",2,1,3,12,"N",12,"Y","Yes","No","No","No"]
[null,"Rachel Hoar","Nacho","T16237214",1,0,4,4,"Y",9,"N","No","No","No","No"]
[null,"Zoey Proctor","Figment","T29478231",1,1,4,8,"N",8,"N","No","No","No","No"]
[null,"Ashley Rogers","Oakley","T30961243",1,1,2,6,"N",6,"N","No","No","No","No"]
[null,"Eden Proctor","Rumor","T30760240",0,0,3,0,"Y",5,"N","No","No","No","No"]
[null,"Tammy Bonas","Bo","T26447235",1,0,3,4,"N",4,"N","No","No","No","No"]
[null,"Jeff Love","Rhapsody","T13736205",1,0,4,3,"N",3,"N","No","No","No","No"]
[null,"Frank Montgomery","Bil Boy Blu","T2009152",0,0,2,0,"N",0,"N","No","No","No","No"]
[null,"Silver Alfriker","Bisha","T26466233",0,0,4,0,"N",0,"N","No","No","No","No"]
[null,"Jennifer Bale O'Connell","Mayday","T24346222",0,0,4,0,"N",0,"N","No","No","No","No"]
[null,null,null,null,null,null,null,null,null,0,null,"No","No","No","No"]
[null,null,null,null,null,null,null,null,null,0,null,"No","No","No","No"]
[null,null,null,null,null,null,null,null,null,0,null,"No","No","No","No"]
[null,null,null,null,null,null,null,null,null,0,null,"No","No","No","No"]
[null,null,null,null,null,null,null,null,null,0,null,"No","No","No","No"]
[null,null,null,null,null,null,null,null,null,0,null,"No","No","No","No"]
[null,null,null,null,null,null,null,null,null,0,null,"No","No","No","No"]
[null,null,null,null,null,null,null,null,null,0,null,"No","No","No","No"]
[null,null,null,null,null,null,null,null,null,0,null,"No","No","No","No"]
[null,null,null,null,null,null,null,null,null,0,null,"No","No","No","No"]
[null,null,null,null,null,null,null,null,null,0,null,"No","No","No","No"]
[null,null,null,null,null,null,null,null,null,0,null,"No","No",{"$f":"IF(AND(E34>3)*(G34=0),\"Yes\",\"No\")","v":"No"},"No"]
[null,null,null,null,null,null,null,null,null,0,null,"No","No","No","No"]
[null,null,null,null,null,null,null,null,null,0,null,"No","No","No","No"]
[null,null,null,null,null,null,null,null,null,0,null,"No","No","No","No"]
[null,null,null,null,null,null,null,null,null,0,null,"No","No","No","No"]
[null,null,null,null,null,null,null,null,null,0,null,"No","No","No","No"]
[null,null,null,null,null,null,null,null,null,0,null,"No","No","No","No"]
[null,null,null,null,null,null,null,null,null,0,null,"No","No","No","No"]
[null,null,null,null,null,null,null,null,null,0,null,"No","No","No","No"]
[null,null,null,null,null,null,null,null,null,0,null,"No","No","No","No"]
[null,null,null,null,null,null,null,null,null,0,null,"No","No","No","No"]
[null,null,null,null,null,null,null,null,null,0,null,"No","No","No","No"]
[null,null,null,null,null,null,null,null,null,0,null,"No","No","No","No"]
[null,null,null,null,null,null,null,null,null,0,null,"No","No","No","No"]
[null,null,null,null,null,null,null,null,null,0,null,"No","No","No","No"]
[null,null,null,null,null,null,null,null,null,0,null,"No","No","No","No"]
[null,null,null,null,null,null,null,null,null,0,null,"No","No","No","No"]
[null,null,null,null,null,null,null,null,null,0,null,"No","No","No","No"]
[null,null,null,null,null,null,null,null,null,0,null,"No","No","No","No"]
[null,null,null,null,null,null,null,null,null,0,null,"No","No","No","No"]
[null,null,null,null,null,null,null,null,null,0,null,"No","No","No","No"]
[null,null,null,null,null,null,null,null,null,0,null,"No","No","No","No"]
[null,null,null,null,null,null,null,null,null,0,null,"No","No","No","No"]
[null,null,null,null,null,null,null,null,null,0,null,"No","No","No","No"]
[null,null,null,null,null,null,null,null,null,0,null,"No","No","No","No"]
[null,null,null,null,null,null,null,null,null,0,null,"No","No","No","No"]
[null,null,null,null,null,null,null,null,null,0,null,"No","No","No","No"]
[null,null,null,null,null,null,null,null,null,0,null,"No","No","No","No"]
[null,null,null,null,null,null,null,null,null,0,null,"No","No","No","No"]
[null,null,null,null,null,null,null,null,null,0,null,"No","No","No","No"]
[null,null,null,null,null,null,null,null,null,0,null,"No","No","No","No"]
[null,null,null,null,null,null,null,null,null,0,null,"No","No","No","No"]
[null,null,null,null,null,null,null,null,null,{"$f":"SUM(H66)+IF(I66=\"Y\",5,IF(I66=\"N\",0))","v":0},null,{"$f":"IF(AND(J66>11,K66=\"Y\"),\"Yes\",\"No\")","v":"No"},{"$f":"IF(AND(J66>19,K66=\"Y\"),\"Yes\",\"No\")","v":"No"},{"$f":"IF(AND(E66>3)*(G66=0),\"Yes\",\"No\")","v":"No"},{"$f":"IF(AND(F66>3)*(G66=0),\"Yes\",\"No\")","v":"No"}]
[null,null,null,null,null,null,null,null,null,0,null,"No","No","No","No"]
[null,null,null,null,null,null,null,null,null,0,null,"No","No","No","No"]
[null,null,null,null,null,null,null,null,null,0,null,"No","No","No","No"]
[null,null,null,null,null,null,null,null,null,0,null,"No","No","No","No"]
[null,null,null,null,null,null,null,null,null,0,null,"No","No","No","No"]
[null,null,null,null,null,null,null,null,null,0,null,"No","No","No","No"]
[null,null,null,null,null,null,null,null,null,0,null,"No","No","No","No"]
[null,null,null,null,null,null,null,null,null,0,null,"No","No","No","No"]
[null,null,null,null,null,null,null,null,null,0,null,"No","No","No","No"]
[null,null,null,null,null,null,null,null,null,0,null,"No","No","No","No"]
[null,null,null,null,null,null,null,null,null,0,null,"No","No","No","No"]
[null,null,null,null,null,null,null,null,null,0,null,"No","No","No","No"]
[null,null,null,null,null,null,null,null,null,0,null,"No","No","No","No"]
[null,null,null,null,null,null,null,null,null,0,null,"No","No","No","No"]
[null,null,null,null,null,null,null,null,null,0,null,"No","No","No","No"]
[null,null,null,null,null,null,null,null,null,0,null,"No","No","No","No"]
[null,null,null,null,null,null,null,null,null,0,null,"No","No","No","No"]
[null,null,null,null,null,null,null,null,null,0,null,"No","No","No","No"]
[null,null,null,null,null,null,null,null,null,0,null,"No","No","No","No"]
[null,null,null,null,null,null,null,null,null,0,null,"No","No","No","No"]
[null,null,null,null,null,null,null,null,null,0,null,"No","No","No","No"]
[null,null,null,null,null,null,null,null,null,0,null,"No","No","No","No"]
[null,null,null,null,null,null,null,null,null,0,null,"No","No","No","No"]
[null,null,null,null,null,null,null,null,null,0,null,"No","No","No","No"]
[null,null,null,null,null,null,null,null,null,0,null,"No","No","No","No"]
[null,null,null,null,null,null,null,null,null,0,null,"No","No","No","No"]
[null,null,null,null,null,null,null,null,null,0,null,"No","No","No","No"]
[null,null,null,null,null,null,null,null,null,0,null,"No","No","No","No"]
[null,null,null,null,null,null,null,null,null,0,null,"No","No","No","No"]
[null,null,null,null,null,null,null,null,null,0,null,"No","No","No","No"]
[null,null,null,null,null,null,null,null,null,0,null,"No","No","No","No"]
[null,null,null,null,null,null,null,null,null,0,null,"No","No",{"$f":"IF(AND(E98>3)*(G98=0),\"Yes\",\"No\")","v":"No"},"No"]
[null,null,null,null,null,null,null,null,null,0,null,"No","No","No","No"]
[null,null,null,null,null,null,null,null,null,0,null,"No","No","No","No"]
[null,null,null,null,null,null,null,null,null,0,null,"No","No","No","No"]
[null,null,null,null,null,null,null,null,null,0,null,"No","No","No","No"]
[null,null,null,null,null,null,null,null,null,0,null,"No","No","No","No"]
[null,null,null,null,null,null,null,null,null,0,null,"No","No","No","No"]
[null,null,null,null,null,null,null,null,null,0,null,"No","No","No","No"]
[null,null,null,null,null,null,null,null,null,0,null,"No","No","No","No"]
[null,null,null,null,null,null,null,null,null,0,null,"No","No","No","No"]
[null,null,null,null,null,null,null,null,null,0,null,"No","No","No","No"]
[null,null,null,null,null,null,null,null,null,0,null,"No","No","No","No"]
[null,null,null,null,null,null,null,null,null,0,null,"No","No","No","No"]
[null,null,null,null,null,null,null,null,null,0,null,"No","No","No","No"]
[null,null,null,null,null,null,null,null,null,0,null,"No","No","No","No"]
[null,null,null,null,null,null,null,null,null,0,null,"No","No","No","No"]
[null,null,null,null,null,null,null,null,null,0,null,"No","No","No","No"]
[null,null,null,null,null,null,null,null,null,0,null,"No","No","No","No"]
[null,null,null,null,null,null,null,null,null,0,null,"No","No","No","No"]
[null,null,null,null,null,null,null,null,null,0,null,"No","No","No","No"]
[null,null,null,null,null,null,null,null,null,0,null,"No","No","No","No"]
[null,null,null,null,null,null,null,null,null,0,null,"No","No","No","No"]
[null,null,null,null,null,null,null,null,null,0,null,"No","No","No","No"]
[null,null,null,null,null,null,null,null,null,0,null,"No","No","No","No"]
[null,null,null,null,null,null,null,null,null,0,null,"No","No",{"$f":"IF(AND(D122>3)*(G122=0),\"Yes\",\"No\")","v":"No"},"No"]
[null,null,null,null,null,null,null,null,null,0,null,"No","No","No","No"]
[null,null,null,null,null,null,null,null,null,0,null,"No","No","No","No"]
[null,null,null,null,null,null,null,null,null,0,null,"No","No","No","No"]
[null,null,null,null,null,null,null,null,null,0,null,"No","No","No","No"]
[null,null,null,null,null,null,null,null,null,0,null,"No","No","No","No"]
[null,null,null,null,null,null,null,null,null,0,null,"No","No","No","No"]
[null,null,null,null,null,null,null,null,null,0,null,"No","No","No","No"]
[null,null,null,null,null,null,null,null,null,{"$f":"SUM(H130)+IF(I130=\"Y\",5,IF(I130=\"N\",0))","v":0},null,{"$f":"IF(AND(J130>11,K130=\"Y\"),\"Yes\",\"No\")","v":"No"},{"$f":"IF(AND(J130>19,K130=\"Y\"),\"Yes\",\"No\")","v":"No"},"No",{"$f":"IF(AND(F130>3)*(G130=0),\"Yes\",\"No\")","v":"No"}]
[null,null,null,null,null,null,null,null,null,0,null,"No","No","No","No"]
[null,null,null,null,null,null,null,null,null,0,null,"No","No","No","No"]
[null,null,null,null,null,null,null,null,null,0,null,"No","No","No","No"]
[null,null,null,null,null,null,null,null,null,0,null,"No","No","No","No"]
[null,null,null,null,null,null,null,null,null,0,null,"No","No","No","No"]
[null,null,null,null,null,null,null,null,null,0,null,"No","No","No","No"]
[null,null,null,null,null,null,null,null,null,0,null,"No","No","No","No"]
[null,null,null,null,null,null,null,null,null,0,null,"No","No","No","No"]
[null,null,null,null,null,null,null,null,null,0,null,"No","No","No","No"]
[null,null,null,null,null,null,null,null,null,0,null,"No","No","No","No"]
[null,null,null,null,null,null,null,null,null,0,null,"No","No","No","No"]
[null,null,null,null,null,null,null,null,null,0,null,"No","No","No","No"]
[null,null,null,null,null,null,null,null,null,0,null,"No","No","No","No"]
[null,null,null,null,null,null,null,null,null,0,null,"No","No","No","No"]
[null,null,null,null,null,null,null,null,null,0,null,"No","No","No","No"]
[null,null,null,null,null,null,null,null,null,0,null,"No","No","No","No"]
[null,null,null,null,null,null,null,null,null,0,null,"No","No","No","No"]
[null,null,null,null,null,null,null,null,null,0,null,"No","No","No","No"]
[null,null,null,null,null,null,null,null,null,0,null,"No","No","No","No"]
[null,null,null,null,null,null,null,null,null,0,null,"No","No","No","No"]
[null,null,null,null,null,null,null,null,null,0,null,"No","No","No","No"]
[null,null,null,null,null,null,null,null,null,0,null,"No","No","No","No"]
[null,null,null,null,null,null,null,null,null,0,null,"No","No","No","No"]
[null,null,null,null,null,null,null,null,null,0,null,"No","No","No","No"]
[null,null,null,null,null,null,null,null,null,0,null,"No","No","No","No"]
[null,null,null,null,null,null,null,null,null,0,null,"No","No","No","No"]
[null,null,null,null,null,null,null,null,null,0,null,"No","No","No","No"]
[null,null,null,null,null,null,null,null,null,0,null,"No","No","No","No"]
[null,null,null,null,null,null,null,null,null,0,null,"No","No","No","No"]
[null,null,null,null,null,null,null,null,null,0,null,"No","No","No","No"]
[null,null,null,null,null,null,null,null,null,0,null,"No","No","No","No"]
[null,null,null,null,null,null,null,null,null,0,null,"No","No","No","No"]
[null,null,null,null,null,null,null,null,null,0,null,"No","No","No","No"]
[null,null,null,null,null,null,null,null,null,0,null,"No","No","No","No"]
[null,null,null,null,null,null,null,null,null,0,null,"No","No","No","No"]
[null,null,null,null,null,null,null,null,null,0,null,"No","No","No","No"]
[null,null,null,null,null,null,null,null,null,0,null,"No","No","No","No"]
[null,null,null,null,null,null,null,null,null,0,null,"No","No","No","No"]
[null,null,null,null,null,null,null,null,null,0,null,"No","No",{"$f":"IF(AND(E169>3)*(G169=0),\"Yes\",\"No\")","v":"No"},"No"]
[null,null,null,null,null,null,null,null,null,0,null,"No","No","No","No"]
[null,null,null,null,null,null,null,null,null,0,null,"No","No","No","No"]
[null,null,null,null,null,null,null,null,null,0,null,"No","No","No","No"]
[null,null,null,null,null,null,null,null,null,0,null,"No","No","No","No"]
[null,null,null,null,null,null,null,null,null,0,null,"No","No","No","No"]
[null,null,null,null,null,null,null,null,null,0,null,"No","No","No","No"]
[null,null,null,null,null,null,null,null,null,0,null,"No","No","No","No"]
[null,null,null,null,null,null,null,null,null,0,null,"No","No","No","No"]
[null,null,null,null,null,null,null,null,null,0,null,"No","No","No","No"]
[null,null,null,null,null,null,null,null,null,0,null,"No","No","No","No"]
[null,null,null,null,null,null,null,null,null,0,null,"No","No","No","No"]
[null,null,null,null,null,null,null,null,null,0,null,"No","No","No","No"]
[null,null,null,null,null,null,null,null,null,0,null,"No","No","No","No"]
[null,null,null,null,null,null,null,null,null,0,null,"No","No","No","No"]
[null,null,null,null,null,null,null,null,null,0,null,"No","No","No","No"]
[null,null,null,null,null,null,null,null,null,0,null,"No","No","No","No"]
[null,null,null,null,null,null,null,null,null,0,null,"No","No","No","No"]
[null,null,null,null,null,null,null,null,null,0,null,"No","No","No","No"]
[null,null,null,null,null,null,null,null,null,0,null,"No","No","No","No"]
[null,null,null,null,null,null,null,null,null,0,null,"No","No","No","No"]
[null,null,null,null,null,null,null,null,null,0,null,"No","No","No","No"]
[null,null,null,null,null,null,null,null,null,0,null,"No","No","No","No"]
[null,null,null,null,null,null,null,null,null,0,null,"No","No","No","No"]
[null,null,null,null,null,null,null,null,null,0,null,"No","No","No","No"]
[null,null,null,null,null,null,null,null,null,{"$f":"SUM(H194)+IF(I194=\"Y\",5,IF(I194=\"N\",0))","v":0},null,{"$f":"IF(AND(J194>11,K194=\"Y\"),\"Yes\",\"No\")","v":"No"},{"$f":"IF(AND(J194>19,K194=\"Y\"),\"Yes\",\"No\")","v":"No"},"No",{"$f":"IF(AND(F194>3)*(G194=0),\"Yes\",\"No\")","v":"No"}]
[null,null,null,null,null,null,null,null,null,0,null,"No","No","No","No"]
[null,null,null,null,null,null,null,null,null,0,null,"No","No","No","No"]
[null,null,null,null,null,null,null,null,null,0,null,"No","No","No","No"]
[null,null,null,null,null,null,null,null,null,0,null,"No","No","No","No"]
[null,null,null,null,null,null,null,null,null,0,null,"No","No","No","No"]
[null,null,null,null,null,null,null,null,null,0,null,"No","No","No","No"]
[null,null,null,null,null,null,null,null,null,0,null,"No","No",{"$f":"IF(AND(E201>3)*(G201=0),\"Yes\",\"No\")","v":"No"},"No"]
[null,null,null,null,null,null,null,null,null,0,null,"No","No","No","No"]
[null,null,null,null,null,null,null,null,null,0,null,"No","No","No","No"]
[null,null,null,null,null,null,null,null,null,0,null,"No","No","No","No"]
[null,null,null,null,null,null,null,null,null,0,null,"No","No","No","No"]
[null,null,null,null,null,null,null,null,null,0,null,"No","No","No","No"]
[null,null,null,null,null,null,null,null,null,0,null,"No","No","No","No"]
[null,null,null,null,null,null,null,null,null,0,null,"No","No","No","No"]
[null,null,null,null,null,null,null,null,null,0,null,"No","No","No","No"]
[null,null,null,null,null,null,null,null,null,0,null,"No","No","No","No"]
[null,null,null,null,null,null,null,null,null,0,null,"No","No","No","No"]
[null,null,null,null,null,null,null,null,null,0,null,"No","No","No","No"]
[null,null,null,null,null,null,null,null,null,0,null,"No","No","No","No"]
[null,null,null,null,null,null,null,null,null,0,null,"No","No","No","No"]
[null,null,null,null,null,null,null,null,null,0,null,"No","No","No","No"]
[null,null,null,null,null,null,null,null,null,0,null,"No","No","No","No"]
[null,null,null,null,null,null,null,null,null,0,null,"No","No","No","No"]
[null,null,null,null,null,null,null,null,null,0,null,"No","No","No","No"]
[null,null,null,null,null,null,null,null,null,0,null,"No","No","No","No"]
[null,null,null,null,null,null,null,null,null,0,null,"No","No","No","No"]
[null,null,null,null,null,null,null,null,null,0,null,"No","No","No","No"]
[null,null,null,null,null,null,null,null,null,0,null,"No","No","No","No"]
[null,null,null,null,null,null,null,null,null,0,null,"No","No","No","No"]
[null,null,null,null,null,null,null,null,null,0,null,"No","No","No","No"]
[null,null,null,null,null,null,null,null,null,0,null,"No","No","No","No"]
[null,null,null,null,null,null,null,null,null,0,null,"No","No","No","No"]
[null,null,null,null,null,null,null,null,null,0,null,"No","No","No","No"]
[null,null,null,null,null,null,null,null,null,0,null,"No","No","No","No"]
[null,null,null,null,null,null,null,null,null,0,null,"No","No","No","No"]
[null,null,null,null,null,null,null,null,null,0,null,"No","No","No","No"]
[null,null,null,null,null,null,null,null,null,0,null,"No","No","No","No"]
[null,null,null,null,null,null,null,null,null,0,null,"No","No","No","No"]
[null,null,null,null,null,null,null,null,null,0,null,"No","No",{"$f":"IF(AND(E233>3)*(G233=0),\"Yes\",\"No\")","v":"No"},"No"]
[null,null,null,null,null,null,null,null,null,0,null,"No","No","No","No"]
[null,null,null,null,null,null,null,null,null,0,null,"No","No","No","No"]
[null,null,null,null,null,null,null,null,null,0,null,"No","No","No","No"]
[null,null,null,null,null,null,null,null,null,0,null,"No","No","No","No"]
[null,null,null,null,null,null,null,null,null,0,null,"No","No","No","No"]
[null,null,null,null,null,null,null,null,null,0,null,"No","No","No","No"]
[null,null,null,null,null,null,null,null,null,0,null,"No","No","No","No"]
[null,null,null,null,null,null,null,null,null,0,null,"No","No","No","No"]
[null,null,null,null,null,null,null,null,null,0,null,"No","No","No","No"]
[null,null,null,null,null,null,null,null,null,0,null,"No","No","No","No"]
[null,null,null,null,null,null,null,null,null,0,null,"No","No","No","No"]
[null,null,null,null,null,null,null,null,null,0,null,"No","No","No","No"]
[null,null,null,null,null,null,null,null,null,0,null,"No","No","No","No"]
[null,null,null,null,null,null,null,null,null,0,null,"No","No","No","No"]
[null,null,null,null,null,null,null,null,null,0,null,"No","No","No","No"]
[null,null,null,null,null,null,null,null,null,0,null,"No","No","No","No"]
[null,null,null,null,null,null,null,null,null,0,null,"No","No","No","No"]
[null,null,null,null,null,null,null,null,null,0,null,"No","No","No","No"]
[null,null,null,null,null,null,null,null,null,0,null,"No","No","No","No"]
[null,null,null,null,null,null,null,null,null,0,null,"No","No","No","No"]
[null,null,null,null,null,null,null,null,null,0,null,"No","No","No","No"]
[null,null,null,null,null,null,null,null,null,0,null,"No","No","No","No"]
[null,null,null,null,null,null,null,null,null,0,null,"No","No","No","No"]
[null,null,null,null,null,null,null,null,null,0,null,"No","No","No","No"]
[null,null,null,null,null,null,null,null,null,{"$f":"SUM(H258)+IF(I258=\"Y\",5,IF(I258=\"N\",0))","v":0},null,{"$f":"IF(AND(J258>11,K258=\"Y\"),\"Yes\",\"No\")","v":"No"},{"$f":"IF(AND(J258>19,K258=\"Y\"),\"Yes\",\"No\")","v":"No"},"No",{"$f":"IF(AND(F258>3)*(G258=0),\"Yes\",\"No\")","v":"No"}]
[null,null,null,null,null,null,null,null,null,0,null,"No","No","No","No"]
[null,null,null,null,null,null,null,null,null,0,null,"No","No","No","No"]
[null,null,null,null,null,null,null,null,null,0,null,"No","No","No","No"]
[null,null,null,null,null,null,null,null,null,0,null,"No","No","No","No"]
[null,null,null,null,null,null,null,null,null,0,null,"No","No","No","No"]
[null,null,null,null,null,null,null,null,null,0,null,"No","No","No","No"]
[null,null,null,null,null,null,null,null,null,0,null,"No","No",{"$f":"IF(AND(E265>3)*(G265=0),\"Yes\",\"No\")","v":"No"},"No"]
[null,null,null,null,null,null,null,null,null,0,null,"No","No","No","No"]
[null,null,null,null,null,null,null,null,null,0,null,"No","No","No","No"]
[null,null,null,null,null,null,null,null,null,0,null,"No","No","No","No"]
[null,null,null,null,null,null,null,null,null,0,null,"No","No","No","No"]
[null,null,null,null,null,null,null,null,null,0,null,"No","No","No","No"]
[null,null,null,null,null,null,null,null,null,0,null,"No","No","No","No"]
[null,null,null,null,null,null,null,null,null,0,null,"No","No","No","No"]
[null,null,null,null,null,null,null,null,null,0,null,"No","No","No","No"]
[null,null,null,null,null,null,null,null,null,0,null,"No","No","No","No"]
[null,null,null,null,null,null,null,null,null,0,null,"No","No","No","No"]
[null,null,null,null,null,null,null,null,null,0,null,"No","No","No","No"]
[null,null,null,null,null,null,null,null,null,0,null,"No","No","No","No"]
[null,null,null,null,null,null,null,null,null,0,null,"No","No","No","No"]
[null,null,null,null,null,null,null,null,null,0,null,"No","No","No","No"]
[null,null,null,null,null,null,null,null,null,0,null,"No","No","No","No"]
[null,null,null,null,null,null,null,null,null,0,null,"No","No","No","No"]
[null,null,null,null,null,null,null,null,null,0,null,"No","No","No","No"]
[null,null,null,null,null,null,null,null,null,0,null,"No","No","No","No"]
[null,null,null,null,null,null,null,null,null,0,null,"No","No","No","No"]
[null,null,null,null,null,null,null,null,null,0,null,"No","No","No","No"]
[null,null,null,null,null,null,null,null,null,0,null,"No","No","No","No"]
[null,null,null,null,null,null,null,null,null,0,null,"No","No","No","No"]
[null,null,null,null,null,null,null,null,null,0,null,"No","No","No","No"]
[null,null,null,null,null,null,null,null,null,0,null,"No","No","No","No"]
[null,null,null,null,null,null,null,null,null,0,null,"No","No","No","No"]
[null,null,null,null,null,null,null,null,null,0,null,"No","No","No","No"]
[null,null,null,null,null,null,null,null,null,0,null,"No","No","No","No"]
[null,null,null,null,null,null,null,null,null,0,null,"No","No","No","No"]
[null,null,null,null,null,null,null,null,null,0,null,"No","No","No","No"]
[null,null,null,null,null,null,null,null,null,0,null,"No","No","No","No"]
[null,null,null,null,null,null,null,null,null,0,null,"No","No","No","No"]
[null,null,null,null,null,null,null,null,null,0,null,"No","No","No","No"]
[null,null,null,null,null,null,null,null,null,0,null,"No","No","No","No"]

{"sheet":"Sheet2","index":4,"n_rows":145,"n_cols":3,"rows_kept":145,"cut":false,"hidden":true,"merged":[]}
[0,null,0]
[1,null,1]
[2,null,2]
[3,null,3]
[4,null,4]
[5,null,5]
[6,null,6]
[7,null,7]
[8,null,8]
[9,null,9]
[10,null,10]
[11,null,11]
[12,null,12]
[13,null,13]
[14,null,14]
[15,null,15]
[16,null,16]
[17,null,17]
[18,null,18]
[19,null,19]
[20,null,20]
[21,null,21]
[22,null,22]
[23,null,23]
[24,null,24]
[25,null,25]
[26,null,26]
[27,null,27]
[28,null,28]
[29,null,29]
[null,null,30]
[null,null,31]
[null,null,32]
[null,null,33]
[null,null,34]
[null,null,35]
[null,null,36]
[null,null,37]
[null,null,38]
[null,null,39]
[null,null,40]
[null,null,41]
[null,null,42]
[null,null,43]
[null,null,44]
[null,null,45]
[null,null,46]
[null,null,47]
[null,null,48]
[null,null,49]
[null,null,50]
[null,null,51]
[null,null,52]
[null,null,53]
[null,null,54]
[null,null,55]
[null,null,56]
[null,null,57]
[null,null,58]
[null,null,59]
[null,null,60]
[null,null,61]
[null,null,62]
[null,null,63]
[null,null,64]
[null,null,65]
[null,null,66]
[null,null,67]
[null,null,68]
[null,null,69]
[null,null,70]
[null,null,71]
[null,null,72]
[null,null,73]
[null,null,74]
[null,null,75]
[null,null,76]
[null,null,77]
[null,null,78]
[null,null,79]
[null,null,80]
[null,null,81]
[null,null,82]
[null,null,83]
[null,null,84]
[null,null,85]
[null,null,86]
[null,null,87]
[null,null,88]
[null,null,89]
[null,null,90]
[null,null,91]
[null,null,92]
[null,null,93]
[null,null,94]
[null,null,95]
[null,null,96]
[null,null,97]
[null,null,98]
[null,null,99]
[null,null,100]
[null,null,101]
[null,null,102]
[null,null,103]
[null,null,104]
[null,null,105]
[null,null,106]
[null,null,107]
[null,null,108]
[null,null,109]
[null,null,110]
[null,null,111]
[null,null,112]
[null,null,113]
[null,null,114]
[null,null,115]
[null,null,116]
[null,null,117]
[null,null,118]
[null,null,119]
[null,null,120]
[null,null,121]
[null,null,122]
[null,null,123]
[null,null,124]
[null,null,125]
[null,null,126]
[null,null,127]
[null,null,128]
[null,null,129]
[null,null,130]
[null,null,131]
[null,null,132]
[null,null,133]
[null,null,134]
[null,null,135]
[null,null,136]
[null,null,137]
[null,null,138]
[null,null,139]
[null,null,140]
[null,null,141]
[null,null,142]
[null,null,143]
[null,null,144]

{"sheet":"Sheet1","index":5,"n_rows":3,"n_cols":1,"rows_kept":3,"cut":false,"hidden":true,"merged":[]}
[]
["Y"]
["N"]